[Event "Early-Titled-Tuesday-Blitz-September-12-2023"]
[Site "Chess.com"]
[Date "2023.09.12"]
[Round "11"]
[White "Juicy_Fork"]
[Black "benny_aizenberg"]
[Result "0-1"]
[WhiteElo "2470"]
[BlackElo "2621"]
[TimeControl "180+1"]
[EndTime "10:06:22 PDT"]
[Termination "benny_aizenberg won by checkmate"]

1. e4 {[%clk 0:03:00.9]} 1... e5 {[%clk 0:02:47.2]} 2. Nf3 {[%clk 0:03:00.1]}
2... Nf6 {[%clk 0:02:47.6]} 3. Nxe5 {[%clk 0:02:58.7]} 3... Nc6 {[%clk
0:02:47.9]} 4. Nf3 {[%clk 0:02:59.3]} 4... Nxe4 {[%clk 0:02:47.6]} 5. Nc3 {[%clk
0:02:52.3]} 5... Nxc3 {[%clk 0:02:42.4]} 6. dxc3 {[%clk 0:02:53.2]} 6... Be7
{[%clk 0:02:38.7]} 7. Bd3 {[%clk 0:02:52.8]} 7... d5 {[%clk 0:02:32.7]} 8. Be3
{[%clk 0:02:51.4]} 8... Be6 {[%clk 0:02:25.5]} 9. Qe2 {[%clk 0:02:49.5]} 9...
Qd7 {[%clk 0:02:15.1]} 10. O-O-O {[%clk 0:02:48.7]} 10... O-O-O {[%clk 0:02:02]}
11. Bb5 {[%clk 0:02:48.2]} 11... Qd6 {[%clk 0:01:34.7]} 12. Kb1 {[%clk
0:02:33.2]} 12... a6 {[%clk 0:01:29.4]} 13. Bd3 {[%clk 0:02:02.2]} 13... Bf6
{[%clk 0:01:22.4]} 14. h3 {[%clk 0:01:58.7]} 14... Rhe8 {[%clk 0:01:21]} 15.
Rhe1 {[%clk 0:01:57.9]} 15... h6 {[%clk 0:01:13.3]} 16. a3 {[%clk 0:01:51]}
16... Na5 {[%clk 0:00:51.6]} 17. b4 {[%clk 0:01:44.8]} 17... Bxc3 {[%clk
0:00:37.8]} 18. Nd2 {[%clk 0:00:53.3]} 18... d4 {[%clk 0:00:32.2]} 19. Nc4
{[%clk 0:00:44.2]} 19... Nxc4 {[%clk 0:00:25.2]} 20. Bxc4 {[%clk 0:00:43.4]}
20... Bxc4 {[%clk 0:00:19.6]} 21. Qxc4 {[%clk 0:00:43.1]} 21... Bxe1 {[%clk
0:00:20.1]} 22. g3 {[%clk 0:00:26.6]} 22... Bc3 {[%clk 0:00:19.1]} 23. Bf4
{[%clk 0:00:25.4]} 23... Qc6 {[%clk 0:00:18.9]} 24. Qxf7 {[%clk 0:00:24.2]}
24... Qd7 {[%clk 0:00:18.5]} 25. Qc4 {[%clk 0:00:23.6]} 25... Kb8 {[%clk
0:00:18.1]} 26. a4 {[%clk 0:00:19.9]} 26... g5 {[%clk 0:00:18]} 27. Bd2 {[%clk
0:00:12.6]} 27... Bxd2 {[%clk 0:00:17.3]} 28. Rxd2 {[%clk 0:00:13.5]} 28... Re1+
{[%clk 0:00:17]} 29. Kb2 {[%clk 0:00:12.8]} 29... Qxa4 {[%clk 0:00:17.6]} 30.
Rxd4 {[%clk 0:00:03.8]} 30... Qa1+ {[%clk 0:00:16.5]} 31. Kb3 {[%clk 0:00:04.2]}
31... Qb1+ {[%clk 0:00:16.6]} 32. Kc3 {[%clk 0:00:02.1]} 32... Qa1+ {[%clk
0:00:16.4]} 33. Kb3 {[%clk 0:00:02.2]} 33... Qxd4 {[%clk 0:00:16.4]} 34. Qf7
{[%clk 0:00:01.9]} 34... Qd5+ {[%clk 0:00:16.4]} 35. Qxd5 {[%clk 0:00:01.3]}
35... Rxd5 {[%clk 0:00:17.3]} 36. c4 {[%clk 0:00:02.1]} 36... Rd2 {[%clk
0:00:17.7]} 37. Kc3 {[%clk 0:00:02.4]} 37... Rxf2 {[%clk 0:00:18.2]} 38. c5
{[%clk 0:00:03.3]} 38... Re3+ {[%clk 0:00:18.4]} 39. Kd4 {[%clk 0:00:03.6]}
39... Rxg3 {[%clk 0:00:18.9]} 40. Ke5 {[%clk 0:00:03.8]} 40... Rxh3 {[%clk
0:00:19.2]} 41. b5 {[%clk 0:00:03.9]} 41... axb5 {[%clk 0:00:19.2]} 42. c6
{[%clk 0:00:04.8]} 42... bxc6 {[%clk 0:00:19.5]} 43. Ke6 {[%clk 0:00:04.9]}
43... Kb7 {[%clk 0:00:20.4]} 44. Kd7 {[%clk 0:00:05.8]} 44... Rd2+ {[%clk
0:00:20.5]} 45. Ke6 {[%clk 0:00:05.7]} 45... Rf3 {[%clk 0:00:20.9]} 46. Ke5
{[%clk 0:00:05.7]} 46... Rf4 {[%clk 0:00:21.8]} 47. Ke6 {[%clk 0:00:06]} 47...
b4 {[%clk 0:00:22.7]} 48. Ke7 {[%clk 0:00:06.9]} 48... b3 {[%clk 0:00:23.6]} 49.
Ke8 {[%clk 0:00:07.7]} 49... b2 {[%clk 0:00:24.5]} 50. Ke7 {[%clk 0:00:08.6]}
50... b1=N {[%clk 0:00:24]} 51. Ke6 {[%clk 0:00:09.5]} 51... c5 {[%clk
0:00:24.4]} 52. Ke5 {[%clk 0:00:10]} 52... c4 {[%clk 0:00:25.3]} 53. Ke6 {[%clk
0:00:10.9]} 53... c3 {[%clk 0:00:26.2]} 54. Ke7 {[%clk 0:00:11.8]} 54... c2
{[%clk 0:00:25.2]} 55. Ke6 {[%clk 0:00:12.7]} 55... c1=R {[%clk 0:00:23.3]} 56.
Ke5 {[%clk 0:00:13.6]} 56... Re1# {[%clk 0:00:23.8]} 0-1

[Event "Early-Titled-Tuesday-Blitz-September-12-2023"]
[Site "Chess.com"]
[Date "2023.09.12"]
[Round "11"]
[White "FairChess_on_YouTube"]
[Black "fireheart92"]
[Result "1-0"]
[WhiteElo "3055"]
[BlackElo "2968"]
[TimeControl "180+1"]
[EndTime "10:06:23 PDT"]
[Termination "FairChess_on_YouTube won by resignation"]

1. d4 {[%clk 0:03:00.9]} 1... e6 {[%clk 0:02:59.1]} 2. Nf3 {[%clk 0:02:57.6]}
2... Nf6 {[%clk 0:02:56]} 3. c4 {[%clk 0:02:56.4]} 3... b6 {[%clk 0:02:56]} 4.
g3 {[%clk 0:02:54.5]} 4... Ba6 {[%clk 0:02:54.2]} 5. Nbd2 {[%clk 0:02:54]} 5...
d5 {[%clk 0:02:52.8]} 6. cxd5 {[%clk 0:02:42.2]} 6... exd5 {[%clk 0:02:52.3]} 7.
Bg2 {[%clk 0:02:39.1]} 7... Bd6 {[%clk 0:02:52.3]} 8. O-O {[%clk 0:02:37.1]}
8... O-O {[%clk 0:02:52.4]} 9. Ne5 {[%clk 0:02:34.7]} 9... Qe8 {[%clk
0:02:52.6]} 10. Ndf3 {[%clk 0:02:33.3]} 10... Nbd7 {[%clk 0:02:51]} 11. Bf4
{[%clk 0:02:30.7]} 11... Ne4 {[%clk 0:02:43.4]} 12. Rc1 {[%clk 0:02:21]} 12...
Ndf6 {[%clk 0:02:29.1]} 13. Re1 {[%clk 0:02:01.9]} 13... c5 {[%clk 0:02:15]} 14.
e3 {[%clk 0:01:42]} 14... c4 {[%clk 0:01:50.6]} 15. h3 {[%clk 0:01:35.1]} 15...
Bb4 {[%clk 0:01:47.1]} 16. Re2 {[%clk 0:01:24.3]} 16... c3 {[%clk 0:01:46.5]}
17. bxc3 {[%clk 0:01:16.7]} 17... Nxc3 {[%clk 0:01:44.8]} 18. Rxc3 {[%clk
0:01:16.3]} 18... Bxe2 {[%clk 0:01:44.5]} 19. Qxe2 {[%clk 0:01:17]} 19... Bxc3
{[%clk 0:01:44.8]} 20. Nh4 {[%clk 0:01:16.6]} 20... Rc8 {[%clk 0:01:38.9]} 21.
Nf5 {[%clk 0:01:13.7]} 21... Qe6 {[%clk 0:01:38.3]} 22. g4 {[%clk 0:01:06.2]}
22... Rfe8 {[%clk 0:01:30]} 23. h4 {[%clk 0:00:58.6]} 23... Ne4 {[%clk 0:01:26]}
24. Bh3 {[%clk 0:00:56.6]} 24... f6 {[%clk 0:01:09.5]} 25. Nd3 {[%clk
0:00:51.6]} 25... g6 {[%clk 0:00:57.8]} 26. Nh6+ {[%clk 0:00:48.1]} 26... Kg7
{[%clk 0:00:57.5]} 27. Kg2 {[%clk 0:00:33.1]} 27... Nd2 {[%clk 0:00:57.7]} 28.
g5 {[%clk 0:00:32.7]} 28... f5 {[%clk 0:00:38.4]} 29. Be5+ {[%clk 0:00:32.3]}
29... Kf8 {[%clk 0:00:38.8]} 30. Nf4 {[%clk 0:00:32.6]} 30... Qc6 {[%clk
0:00:38.6]} 31. Nxf5 {[%clk 0:00:27.9]} 31... gxf5 {[%clk 0:00:33.7]} 32. Qh5
{[%clk 0:00:28.5]} 32... Re7 {[%clk 0:00:20.5]} 33. Bxf5 {[%clk 0:00:27]} 33...
Qc4 {[%clk 0:00:20.5]} 34. Bd3 {[%clk 0:00:17.4]} 34... Qc6 {[%clk 0:00:17.4]}
35. Bxh7 {[%clk 0:00:17.3]} 35... Rf7 {[%clk 0:00:10.4]} 36. Bg6 {[%clk
0:00:15.4]} 36... Rcc7 {[%clk 0:00:09.9]} 37. Qh8+ {[%clk 0:00:14.5]} 37... Ke7
{[%clk 0:00:10.3]} 38. Bxf7 {[%clk 0:00:15.1]} 38... Qb5 {[%clk 0:00:08.5]} 39.
Qf6+ {[%clk 0:00:10.8]} 39... Kd7 {[%clk 0:00:06.8]} 40. Qe6+ {[%clk 0:00:11.1]}
40... Kd8 {[%clk 0:00:07.3]} 41. Bf6+ {[%clk 0:00:11.2]} 41... Re7 {[%clk
0:00:07]} 42. Qxe7+ {[%clk 0:00:11.4]} 42... Kc8 {[%clk 0:00:06.1]} 43. Be6+
{[%clk 0:00:11.7]} 43... Kb8 {[%clk 0:00:06.4]} 44. Qd8+ {[%clk 0:00:12.1]} 1-0

[Event "Early-Titled-Tuesday-Blitz-September-12-2023"]
[Site "Chess.com"]
[Date "2023.09.12"]
[Round "11"]
[White "Rickstereo"]
[Black "Arteler"]
[Result "0-1"]
[WhiteElo "2567"]
[BlackElo "2462"]
[TimeControl "180+1"]
[EndTime "10:06:23 PDT"]
[Termination "Arteler won on time"]

1. Nf3 {[%clk 0:03:00]} 1... d5 {[%clk 0:02:59.4]} 2. g3 {[%clk 0:02:59.1]} 2...
c6 {[%clk 0:02:57.9]} 3. Bg2 {[%clk 0:02:57.9]} 3... Nf6 {[%clk 0:02:58.5]} 4.
c4 {[%clk 0:02:57.7]} 4... a6 {[%clk 0:02:53.6]} 5. b3 {[%clk 0:02:55.2]} 5...
Bf5 {[%clk 0:02:53.9]} 6. O-O {[%clk 0:02:52.4]} 6... e6 {[%clk 0:02:52.9]} 7.
Bb2 {[%clk 0:02:50.5]} 7... h6 {[%clk 0:02:52.1]} 8. d4 {[%clk 0:02:45.2]} 8...
Nbd7 {[%clk 0:02:51.7]} 9. Nc3 {[%clk 0:02:44.3]} 9... Be7 {[%clk 0:02:51.7]}
10. Nd2 {[%clk 0:02:39.1]} 10... b5 {[%clk 0:02:48.6]} 11. e4 {[%clk 0:02:38]}
11... dxe4 {[%clk 0:02:40]} 12. Ndxe4 {[%clk 0:02:37.5]} 12... Rc8 {[%clk
0:02:29.6]} 13. Qd2 {[%clk 0:02:18.1]} 13... O-O {[%clk 0:02:23.5]} 14. Rad1
{[%clk 0:02:16.2]} 14... b4 {[%clk 0:01:49.8]} 15. Nxf6+ {[%clk 0:02:11.7]}
15... Nxf6 {[%clk 0:01:44.8]} 16. Ne2 {[%clk 0:01:53.8]} 16... Qa5 {[%clk
0:01:37.4]} 17. Ba1 {[%clk 0:01:45.7]} 17... Rfd8 {[%clk 0:01:31.8]} 18. Qb2
{[%clk 0:01:44.2]} 18... Be4 {[%clk 0:01:17.8]} 19. f3 {[%clk 0:01:38.8]} 19...
Bh7 {[%clk 0:01:14.3]} 20. Kh1 {[%clk 0:01:31.3]} 20... Nd7 {[%clk 0:01:09.3]}
21. g4 {[%clk 0:01:27.4]} 21... Bf6 {[%clk 0:01:07.2]} 22. f4 {[%clk 0:01:18.2]}
22... c5 {[%clk 0:01:07.6]} 23. g5 {[%clk 0:01:04]} 23... hxg5 {[%clk
0:01:06.6]} 24. fxg5 {[%clk 0:01:04.1]} 24... Bxg5 {[%clk 0:01:07.5]} 25. dxc5
{[%clk 0:00:58.3]} 25... Bf6 {[%clk 0:01:07.3]} 26. Qc1 {[%clk 0:00:52.6]} 26...
Qxc5 {[%clk 0:00:56.7]} 27. Nf4 {[%clk 0:00:15.4]} 27... Bxa1 {[%clk 0:00:51.6]}
28. Qxa1 {[%clk 0:00:16.3]} 28... Nf6 {[%clk 0:00:52.2]} 29. Rde1 {[%clk
0:00:15]} 29... Rd2 {[%clk 0:00:46.8]} 30. Re5 {[%clk 0:00:14.5]} 30... Qd6
{[%clk 0:00:41.8]} 31. Qe1 {[%clk 0:00:14]} 31... Rd8 {[%clk 0:00:29.1]} 32. Rg5
{[%clk 0:00:14]} 32... Rd1 {[%clk 0:00:23.5]} 33. Qg3 {[%clk 0:00:14.1]} 33...
Rxf1+ {[%clk 0:00:22.9]} 34. Bxf1 {[%clk 0:00:13.6]} 34... Be4+ {[%clk
0:00:23.5]} 35. Bg2 {[%clk 0:00:09.3]} 35... Bxg2+ {[%clk 0:00:23.8]} 36. Kxg2
{[%clk 0:00:09]} 36... Qd2+ {[%clk 0:00:19.8]} 37. Kh3 {[%clk 0:00:08.6]} 37...
g6 {[%clk 0:00:11.8]} 38. Nxg6 {[%clk 0:00:08.4]} 38... Ne4 {[%clk 0:00:12.7]}
39. Ne7+ {[%clk 0:00:07]} 39... Kf8 {[%clk 0:00:13.4]} 40. Rg8+ {[%clk 0:00:06]}
40... Kxe7 {[%clk 0:00:14]} 41. Qc7+ {[%clk 0:00:06.4]} 41... Rd7 {[%clk
0:00:14.3]} 0-1

[Event "Early-Titled-Tuesday-Blitz-September-12-2023"]
[Site "Chess.com"]
[Date "2023.09.12"]
[Round "11"]
[White "DeArron_Fox"]
[Black "inagreV"]
[Result "1-0"]
[WhiteElo "2487"]
[BlackElo "2275"]
[TimeControl "180+1"]
[EndTime "10:06:23 PDT"]
[Termination "DeArron_Fox won by resignation"]

1. d4 {[%clk 0:03:00.9]} 1... Nf6 {[%clk 0:02:58.7]} 2. c4 {[%clk 0:03:01.3]}
2... e6 {[%clk 0:02:58.8]} 3. Nf3 {[%clk 0:03:01.4]} 3... d5 {[%clk 0:02:58.7]}
4. e3 {[%clk 0:03:01.9]} 4... a6 {[%clk 0:02:55.7]} 5. b3 {[%clk 0:03:00]} 5...
c5 {[%clk 0:02:54.7]} 6. Bb2 {[%clk 0:02:58.4]} 6... cxd4 {[%clk 0:02:54.1]} 7.
Nxd4 {[%clk 0:02:55.2]} 7... Bb4+ {[%clk 0:02:53.8]} 8. Bc3 {[%clk 0:02:40.1]}
8... Be7 {[%clk 0:02:48.2]} 9. Bd3 {[%clk 0:02:33]} 9... O-O {[%clk 0:02:47.4]}
10. O-O {[%clk 0:02:32.3]} 10... Nbd7 {[%clk 0:02:46]} 11. Nd2 {[%clk
0:02:31.9]} 11... Nc5 {[%clk 0:02:45.3]} 12. Be2 {[%clk 0:02:28.1]} 12... Bd7
{[%clk 0:02:40.4]} 13. Rc1 {[%clk 0:02:27.4]} 13... Rc8 {[%clk 0:02:40.1]} 14.
Bb2 {[%clk 0:02:23.3]} 14... Rc7 {[%clk 0:02:24.8]} 15. cxd5 {[%clk 0:02:10.3]}
15... Nxd5 {[%clk 0:02:19.1]} 16. Nc4 {[%clk 0:02:09.3]} 16... Bf6 {[%clk
0:02:10.9]} 17. Bf3 {[%clk 0:02:07.5]} 17... Nb4 {[%clk 0:02:07.1]} 18. Ba3
{[%clk 0:01:41.8]} 18... Ncd3 {[%clk 0:01:50.8]} 19. Rc3 {[%clk 0:01:35.7]}
19... b5 {[%clk 0:01:47.7]} 20. Rxd3 {[%clk 0:01:18.7]} 20... Nxd3 {[%clk
0:01:41.1]} 21. Bxf8 {[%clk 0:01:03.7]} 21... bxc4 {[%clk 0:01:31.3]} 22. Bd6
{[%clk 0:00:58.5]} 22... Rc8 {[%clk 0:01:19.7]} 23. Bb7 {[%clk 0:00:53.1]} 23...
Bxd4 {[%clk 0:01:02.9]} 24. exd4 {[%clk 0:00:46.8]} 24... Bc6 {[%clk 0:00:52.6]}
25. Bxc8 {[%clk 0:00:45.6]} 25... Qxd6 {[%clk 0:00:48.8]} 26. bxc4 {[%clk
0:00:42.2]} 26... Nf4 {[%clk 0:00:45.8]} 27. d5 {[%clk 0:00:40.8]} 27... exd5
{[%clk 0:00:43.6]} 28. Re1 {[%clk 0:00:33.2]} 28... g6 {[%clk 0:00:38.1]} 29.
Qd4 {[%clk 0:00:19.4]} 29... Nxg2 {[%clk 0:00:26.4]} 30. Re2 {[%clk 0:00:03]}
30... Nf4 {[%clk 0:00:24.5]} 31. Re3 {[%clk 0:00:03.3]} 31... g5 {[%clk
0:00:10.1]} 32. c5 {[%clk 0:00:03.3]} 32... Qc7 {[%clk 0:00:09.6]} 33. Bg4
{[%clk 0:00:03.6]} 33... Qa5 {[%clk 0:00:09.7]} 34. h3 {[%clk 0:00:03.4]} 34...
Qxa2 {[%clk 0:00:09.1]} 35. Qf6 {[%clk 0:00:03]} 35... Qb1+ {[%clk 0:00:08.8]}
36. Kh2 {[%clk 0:00:03.6]} 36... Qg6 {[%clk 0:00:06.9]} 37. Qxg6+ {[%clk
0:00:03.9]} 37... Nxg6 {[%clk 0:00:07.1]} 38. Rb3 {[%clk 0:00:02.8]} 38... Ne5
{[%clk 0:00:05.3]} 39. Rb6 {[%clk 0:00:03]} 39... Bb5 {[%clk 0:00:05.4]} 40. Bc8
{[%clk 0:00:02.1]} 40... d4 {[%clk 0:00:05.4]} 41. Bxa6 {[%clk 0:00:02.3]} 41...
d3 {[%clk 0:00:06]} 42. Bxb5 {[%clk 0:00:02.3]} 42... Nf3+ {[%clk 0:00:06.4]}
43. Kg3 {[%clk 0:00:02.3]} 43... d2 {[%clk 0:00:06.5]} 44. Rd6 {[%clk
0:00:02.8]} 44... g4 {[%clk 0:00:03.7]} 45. hxg4 {[%clk 0:00:02.9]} 45... Ne5
{[%clk 0:00:03.9]} 46. Rxd2 {[%clk 0:00:02.9]} 1-0

[Event "Early-Titled-Tuesday-Blitz-September-12-2023"]
[Site "Chess.com"]
[Date "2023.09.12"]
[Round "11"]
[White "Actuary44"]
[Black "FredddieCroderg"]
[Result "1-0"]
[WhiteElo "2519"]
[BlackElo "2322"]
[TimeControl "180+1"]
[EndTime "10:06:24 PDT"]
[Termination "Actuary44 won by resignation"]

1. e4 {[%clk 0:03:00.9]} 1... c5 {[%clk 0:02:59]} 2. d4 {[%clk 0:03:01.2]} 2...
cxd4 {[%clk 0:02:58.6]} 3. c3 {[%clk 0:03:01.8]} 3... Nf6 {[%clk 0:02:58.5]} 4.
Bd3 {[%clk 0:03:01.7]} 4... e6 {[%clk 0:02:55.1]} 5. cxd4 {[%clk 0:02:59.9]}
5... Nc6 {[%clk 0:02:53.9]} 6. Be3 {[%clk 0:02:57.2]} 6... d5 {[%clk 0:02:53.2]}
7. e5 {[%clk 0:02:57.1]} 7... Nd7 {[%clk 0:02:42.4]} 8. Ne2 {[%clk 0:02:57]}
8... Be7 {[%clk 0:02:41.5]} 9. O-O {[%clk 0:02:57.1]} 9... a6 {[%clk 0:02:39.4]}
10. Nbc3 {[%clk 0:02:57.6]} 10... b5 {[%clk 0:02:39.4]} 11. f4 {[%clk
0:02:57.3]} 11... g6 {[%clk 0:02:39.2]} 12. g4 {[%clk 0:02:54.4]} 12... Nb6
{[%clk 0:02:24.3]} 13. f5 {[%clk 0:02:54.3]} 13... Bd7 {[%clk 0:02:18.3]} 14.
fxe6 {[%clk 0:02:52.3]} 14... Bxe6 {[%clk 0:02:17.7]} 15. Nf4 {[%clk 0:02:48.1]}
15... Bg5 {[%clk 0:02:15.6]} 16. Qe1 {[%clk 0:02:22.9]} 16... Nc4 {[%clk
0:01:59]} 17. Bxc4 {[%clk 0:02:17.2]} 17... bxc4 {[%clk 0:01:58.1]} 18. Nxe6
{[%clk 0:02:17.6]} 18... fxe6 {[%clk 0:01:55.2]} 19. h3 {[%clk 0:01:54.9]} 19...
Qe7 {[%clk 0:01:49]} 20. Bxg5 {[%clk 0:01:49.9]} 20... Qxg5 {[%clk 0:01:48.7]}
21. Qf2 {[%clk 0:01:50.6]} 21... O-O-O {[%clk 0:01:47.1]} 22. Rad1 {[%clk
0:01:38.3]} 22... h5 {[%clk 0:01:46.8]} 23. Qf4 {[%clk 0:01:27.1]} 23... Qh4
{[%clk 0:01:40.2]} 24. g5 {[%clk 0:00:57.5]} 24... Qxh3 {[%clk 0:01:37.6]} 25.
Rf3 {[%clk 0:00:54.2]} 25... Qf5 {[%clk 0:01:35.4]} 26. Qg3 {[%clk 0:00:47.7]}
26... Qg4 {[%clk 0:01:11.5]} 27. Qxg4 {[%clk 0:00:48.1]} 27... hxg4 {[%clk
0:01:12.4]} 28. Rf6 {[%clk 0:00:48.4]} 28... Rh4 {[%clk 0:01:04.1]} 29. Rxg6
{[%clk 0:00:39.7]} 29... Rdh8 {[%clk 0:01:04.3]} 30. Rxe6 {[%clk 0:00:37]} 30...
Rh1+ {[%clk 0:01:03.3]} 31. Kg2 {[%clk 0:00:37.3]} 31... Rxd1 {[%clk 0:00:52.7]}
32. Nxd1 {[%clk 0:00:38.2]} 32... Nxd4 {[%clk 0:00:52.6]} 33. Rxa6 {[%clk
0:00:38]} 33... Rh5 {[%clk 0:00:41.8]} 34. g6 {[%clk 0:00:31.8]} 34... Rg5
{[%clk 0:00:34.7]} 35. Ne3 {[%clk 0:00:30.4]} 35... Nf3 {[%clk 0:00:30.1]} 36.
e6 {[%clk 0:00:20.6]} 36... Kb7 {[%clk 0:00:16.1]} 37. e7 {[%clk 0:00:16.7]}
37... Re5 {[%clk 0:00:15]} 38. g7 {[%clk 0:00:14.9]} 38... Ne1+ {[%clk
0:00:09.1]} 39. Kf2 {[%clk 0:00:13.1]} 39... Nd3+ {[%clk 0:00:09.2]} 40. Ke2
{[%clk 0:00:12.5]} 40... Nf4+ {[%clk 0:00:07.3]} 41. Kd2 {[%clk 0:00:12.8]}
41... d4 {[%clk 0:00:05.1]} 42. Nxc4 {[%clk 0:00:12.2]} 42... Rxe7 {[%clk
0:00:04.6]} 43. g8=Q {[%clk 0:00:11.5]} 43... Kxa6 {[%clk 0:00:05.2]} 44. Qc8+
{[%clk 0:00:09.7]} 44... Kb5 {[%clk 0:00:03.4]} 45. Nd6+ {[%clk 0:00:09.1]}
45... Kb6 {[%clk 0:00:03.5]} 46. Qd8+ {[%clk 0:00:07.8]} 46... Kc5 {[%clk
0:00:03.9]} 47. Qxe7 {[%clk 0:00:07.4]} 1-0

[Event "Early-Titled-Tuesday-Blitz-September-12-2023"]
[Site "Chess.com"]
[Date "2023.09.12"]
[Round "11"]
[White "Shockerlover"]
[Black "Ariadna_Atreides"]
[Result "1-0"]
[WhiteElo "2008"]
[BlackElo "2206"]
[TimeControl "180+1"]
[EndTime "10:06:24 PDT"]
[Termination "Shockerlover won on time"]

1. d4 {[%clk 0:01:55.9]} 1... Nf6 {[%clk 0:02:55.5]} 2. Nf3 {[%clk 0:01:56.8]}
2... e6 {[%clk 0:02:55.1]} 3. c4 {[%clk 0:01:57.4]} 3... Bb4+ {[%clk 0:02:54.5]}
4. Bd2 {[%clk 0:01:56.8]} 4... Bxd2+ {[%clk 0:02:54.5]} 5. Nbxd2 {[%clk
0:01:57.7]} 5... d6 {[%clk 0:02:52.9]} 6. Qc2 {[%clk 0:01:57.9]} 6... Qe7 {[%clk
0:02:51.5]} 7. e4 {[%clk 0:01:58.3]} 7... e5 {[%clk 0:02:51.2]} 8. dxe5 {[%clk
0:01:55.5]} 8... dxe5 {[%clk 0:02:50.5]} 9. Be2 {[%clk 0:01:56.3]} 9... Nc6
{[%clk 0:02:48.4]} 10. O-O {[%clk 0:01:56.6]} 10... O-O {[%clk 0:02:34.7]} 11.
a3 {[%clk 0:01:56]} 11... a5 {[%clk 0:02:33.8]} 12. Rad1 {[%clk 0:01:50.7]}
12... a4 {[%clk 0:02:30]} 13. Nb1 {[%clk 0:01:46.2]} 13... Bg4 {[%clk
0:02:27.3]} 14. Nc3 {[%clk 0:01:44.7]} 14... Bxf3 {[%clk 0:02:27]} 15. Bxf3
{[%clk 0:01:44.5]} 15... Nd4 {[%clk 0:02:27.5]} 16. Qd3 {[%clk 0:01:43.5]} 16...
Rfd8 {[%clk 0:02:24.3]} 17. Qe3 {[%clk 0:01:41.5]} 17... c6 {[%clk 0:02:22.3]}
18. g3 {[%clk 0:01:29.9]} 18... Nd7 {[%clk 0:02:05.4]} 19. Bg4 {[%clk
0:01:19.7]} 19... Nc5 {[%clk 0:02:02.9]} 20. Ne2 {[%clk 0:01:06]} 20... Ncb3
{[%clk 0:01:28.7]} 21. Nc3 {[%clk 0:00:55.5]} 21... Rd6 {[%clk 0:01:04.1]} 22.
Rd3 {[%clk 0:00:54.5]} 22... Rad8 {[%clk 0:00:57.5]} 23. Rfd1 {[%clk 0:00:54.7]}
23... g6 {[%clk 0:00:42.9]} 24. Kg2 {[%clk 0:00:52.7]} 24... h5 {[%clk 0:00:40]}
25. Bh3 {[%clk 0:00:51]} 25... g5 {[%clk 0:00:21.9]} 26. Bf5 {[%clk 0:00:49]}
26... Nxf5 {[%clk 0:00:18.8]} 27. exf5 {[%clk 0:00:49.9]} 27... f6 {[%clk
0:00:14.7]} 28. Ne4 {[%clk 0:00:47.9]} 28... Rxd3 {[%clk 0:00:13.4]} 29. Rxd3
{[%clk 0:00:48.5]} 29... Nd4 {[%clk 0:00:13.6]} 30. c5 {[%clk 0:00:41.3]} 30...
Kg7 {[%clk 0:00:13.7]} 31. Nd6 {[%clk 0:00:41.1]} 31... b6 {[%clk 0:00:11.5]}
32. Rxd4 {[%clk 0:00:34.6]} 32... bxc5 {[%clk 0:00:08.5]} 33. Rxa4 {[%clk
0:00:30.8]} 33... Qxd6 {[%clk 0:00:04.3]} 34. Ra7+ {[%clk 0:00:30.1]} 34... Rd7
{[%clk 0:00:04.3]} 35. Rxd7+ {[%clk 0:00:28.4]} 35... Qxd7 {[%clk 0:00:04.6]}
36. Qxc5 {[%clk 0:00:28.4]} 36... Qxf5 {[%clk 0:00:04.3]} 37. Qxc6 {[%clk
0:00:27.6]} 37... g4 {[%clk 0:00:03.8]} 38. Qc7+ {[%clk 0:00:26.6]} 38... Kg6
{[%clk 0:00:03.5]} 39. Qc3 {[%clk 0:00:24.5]} 39... Qe4+ {[%clk 0:00:03.4]} 40.
Kg1 {[%clk 0:00:23.3]} 40... Qb1+ {[%clk 0:00:03.1]} 41. Kg2 {[%clk 0:00:22.8]}
41... Qd1 {[%clk 0:00:03.2]} 42. Qe3 {[%clk 0:00:21.3]} 42... Qb1 {[%clk
0:00:02.4]} 43. h3 {[%clk 0:00:20.4]} 43... f5 {[%clk 0:00:02.4]} 44. Qb6+
{[%clk 0:00:17.9]} 44... Kg5 {[%clk 0:00:01.3]} 45. Qe3+ {[%clk 0:00:17.6]}
45... Kg6 {[%clk 0:00:01.1]} 46. hxg4 {[%clk 0:00:17.5]} 1-0

[Event "Early-Titled-Tuesday-Blitz-September-12-2023"]
[Site "Chess.com"]
[Date "2023.09.12"]
[Round "11"]
[White "Zohid6"]
[Black "sergoy"]
[Result "0-1"]
[WhiteElo "2746"]
[BlackElo "2932"]
[TimeControl "180+1"]
[EndTime "10:06:26 PDT"]
[Termination "sergoy won on time"]

1. d4 {[%clk 0:03:00.9]} 1... d5 {[%clk 0:02:59.9]} 2. Nc3 {[%clk 0:02:53.4]}
2... Nf6 {[%clk 0:02:57.5]} 3. Bf4 {[%clk 0:02:20.5]} 3... a6 {[%clk 0:02:54.2]}
4. e3 {[%clk 0:02:20.4]} 4... e6 {[%clk 0:02:51.6]} 5. g4 {[%clk 0:02:20.1]}
5... Bd6 {[%clk 0:02:48.6]} 6. g5 {[%clk 0:02:20]} 6... Nfd7 {[%clk 0:02:48.5]}
7. Nf3 {[%clk 0:02:19.9]} 7... b5 {[%clk 0:02:48]} 8. h4 {[%clk 0:02:19.8]} 8...
Bxf4 {[%clk 0:02:40.4]} 9. exf4 {[%clk 0:02:19.7]} 9... c5 {[%clk 0:02:40.6]}
10. dxc5 {[%clk 0:02:20.6]} 10... Nc6 {[%clk 0:02:39.3]} 11. h5 {[%clk
0:02:19.2]} 11... Qc7 {[%clk 0:02:28.5]} 12. Ne2 {[%clk 0:02:18.6]} 12... Nxc5
{[%clk 0:02:27.5]} 13. Nfd4 {[%clk 0:02:16.7]} 13... Ne7 {[%clk 0:02:21.6]} 14.
h6 {[%clk 0:02:14.1]} 14... g6 {[%clk 0:02:20.5]} 15. Bg2 {[%clk 0:02:13.6]}
15... Bb7 {[%clk 0:02:20.6]} 16. c3 {[%clk 0:02:12.9]} 16... O-O-O {[%clk
0:02:19.5]} 17. O-O {[%clk 0:02:04.1]} 17... Kb8 {[%clk 0:02:16.4]} 18. a4
{[%clk 0:01:59.3]} 18... Nxa4 {[%clk 0:02:15.9]} 19. Rxa4 {[%clk 0:01:59.6]}
19... bxa4 {[%clk 0:02:16.5]} 20. Qxa4 {[%clk 0:02:00.5]} 20... Rd6 {[%clk
0:02:05.1]} 21. Ra1 {[%clk 0:01:55]} 21... Rb6 {[%clk 0:02:04.6]} 22. Qa3 {[%clk
0:01:48.2]} 22... Rc8 {[%clk 0:02:01.5]} 23. Bf1 {[%clk 0:01:45.6]} 23... e5
{[%clk 0:01:55.7]} 24. fxe5 {[%clk 0:01:44.4]} 24... Qxe5 {[%clk 0:01:56.6]} 25.
Nf3 {[%clk 0:01:43.9]} 25... Qd6 {[%clk 0:01:50]} 26. b4 {[%clk 0:01:27.3]}
26... f6 {[%clk 0:01:46.5]} 27. Ned4 {[%clk 0:01:24.7]} 27... Nf5 {[%clk
0:01:41.8]} 28. Bh3 {[%clk 0:01:19.6]} 28... Nxd4 {[%clk 0:01:35]} 29. Nxd4
{[%clk 0:01:20.5]} 29... Re8 {[%clk 0:01:33.5]} 30. Qc1 {[%clk 0:01:11]} 30...
Qe5 {[%clk 0:01:28.4]} 31. Nf3 {[%clk 0:00:58.2]} 31... Qe4 {[%clk 0:01:17.7]}
32. Bg2 {[%clk 0:00:55.2]} 32... d4 {[%clk 0:01:15.1]} 33. Qf1 {[%clk
0:00:33.6]} 33... dxc3 {[%clk 0:01:00.1]} 34. Re1 {[%clk 0:00:31.2]} 34... Qc6
{[%clk 0:01:00.6]} 35. Rc1 {[%clk 0:00:14.9]} 35... Rxb4 {[%clk 0:00:54]} 36.
Qd3 {[%clk 0:00:14.7]} 36... Rg4 {[%clk 0:00:42.2]} 37. Rxc3 {[%clk 0:00:14.4]}
37... Qd5 {[%clk 0:00:36.8]} 38. Qb1 {[%clk 0:00:12.3]} 38... Ka7 {[%clk
0:00:32.3]} 39. Kh2 {[%clk 0:00:07.6]} 39... Ree4 {[%clk 0:00:25.3]} 40. Rd3
{[%clk 0:00:06.6]} 40... Qc6 {[%clk 0:00:14.4]} 41. Qb3 {[%clk 0:00:03.3]} 41...
Ref4 {[%clk 0:00:13.4]} 42. Bh1 {[%clk 0:00:01.6]} 42... Rh4+ {[%clk 0:00:10.7]}
0-1